Workbook

Sheet Rock stage-flow
A1: Project Name | C1: Example Project
A2: Stage Discharge for Rock Ditch Checks
A3: Stone Type | C3: Washed Stone
A4: Graphical Method (user input area are shaded in Gray)
A5: Governing Equation: dh/dl = aq^b
E7: Metric
C8: Dam Height (ft) | D8: 2 | E8: =D8*0.3048 -> 0.6096 | F8: *Max dam height = 2ft
C9: Top Dam Flow Length (ft) | D9: 4 | E9: =D9*0.3048 -> 1.2192 | F9: *Minimum top flow length = 2 ft
C10: Rock Side Slopes (x:1) | D10: 4 | F10: *Maximum Side slopes = 1:1
C11: Rock Diameter D50 (inches) | D11: 6 | E11: =(D11/12)*0.3048 -> 0.1524
C13: Bottom Dam Width (ft) | D13: 3 | E13: =(D13)*0.3048 -> 0.9144
C14: Soil-Rock Side Slope (x:1) | D14: 3
A16: Depth | B16: Depth dh | C16: Flow Length dl (m) | D16: Coefficient | E16: Exponent | F16: Flow q | G16: Flow Width | H16: Total Flow
A17: (ft) | B17: (m) | C17: (m) | D17: a | E17: b | F17: (m^2 / sec) | G17: (ft) | H17: cfs
A18: 0 | B18: =A18*0.3048 -> 0 | C18: =($D$9+2*($D$10*($D$8-A18)))*0.3048 -> 6.096 | D18: =FindCoef_a($E$11,C18) ->  | E18: =FindCoef_b($E$11) ->  | F18: =(B18/(D18*C18))^(1/E18) ->  | G18: =D13 -> 3 | H18: =(F18*10.764)*G18 -> 
A19: =IF(A18<$D$8,A18+0.25,"") -> 0.25 | B19: =A19*0.3048 -> 0.0762 | C19: =IF(A19=0,0.001,($D$9+2*($D$10*($D$8-A19)))*0.3048) -> 5.4864 | F19: =(B19/(D19*C19))^(1/E19) ->  | G19: =IF(A19=0,0,(IF(A19>0,$D$13+2*($D$14*A19)))) -> 4.5 | H19: =(F19*10.764)*G19 -> 
A20: =IF(A19=0,0,(IF(A19=$D$8,0,IF(A19<$D$8,A19+0.25)))) -> 0.5 | B20: =A20*0.3048 -> 0.1524 | C20: =IF(A20=0,0.001,($D$9+2*($D$10*($D$8-A20)))*0.3048) -> 4.8768 | F20: =(B20/(D20*C20))^(1/E20) ->  | G20: =IF(A20=0,0,(IF(A20>0,$D$13+2*($D$14*A20)))) -> 6 | H20: =(F20*10.764)*G20 -> 
A21: 0.75 | B21: 0.2286 | C21: 4.2672 | G21: 7.5
A22: 1 | B22: 0.3048 | C22: 3.6576 | G22: 9
A23: 1.25 | B23: 0.381 | C23: 3.048 | G23: 10.5
A24: 1.5 | B24: 0.4572 | C24: 2.4384 | G24: 12
A25: 1.75 | B25: 0.5334 | C25: 1.8288 | G25: 13.5
A26: 1.8 | B26: 0.54864 | C26: =IF(A26=0,0.001,($D$9+2*($D$10*($D$8-A26)))*0.3048) -> 1.70688 | F26: =(B26/(D26*C26))^(1/E26) ->  | G26: =IF(A26=0,0,(IF(A26>0,$D$13+2*($D$14*A26)))) -> 13.8 | H26: =(F26*10.764)*G26 -> 
A27: =IF(A25=0,0,(IF(A25=$D$8,0,IF(A25<$D$8,A25+0.25)))) -> 2 | B27: 0.6096 | C27: 1.2192 | G27: 15
B30: Stage | C30: Discharge Q
B31: (ft) | C31: (cfs)
B32: =A18 -> 0 | C32: 0
B33: 0.25 | C33: =H19 -> 
B34: 0.5
B35: 0.75
B36: 1
B37: 1.25
B38: 1.5
B39: 1.75
B40: =A27 -> 2 | C40: =H27 -> 

Sheet lookup_table
C1: dl= 1m | D1: dl = 2m | E1: dl = 3m
A2: Stone D50 (m) | B2: Exponent b | C2: Coefficient a | D2: Coefficient a | E2: Coefficient a
C3: 1 | D3: 2 | E3: 3
A4: 0.01 | B4: 0.6371 | C4: 9.4 | D4: 6.05 | E4: 4.6
A5: 0.02 | B5: 0.654 | C5: 7.4 | D5: 4.65 | E5: 3.55
A6: 0.03 | B6: 0.6589 | C6: 6.4 | D6: 4.08 | E6: 3.08
A7: 0.04 | B7: 0.6609 | C7: 5.85 | D7: 3.65 | E7: 2.8
A8: 0.05 | B8: 0.6624 | C8: 5.4 | D8: 3.35 | E8: 2.6
A9: 0.06 | B9: 0.6635 | C9: 5.05 | D9: 3.15 | E9: 2.4
A10: 0.08 | B10: 0.6644 | C10: 4.5 | D10: 2.85 | E10: 2.2
A11: 0.09 | B11: 0.6648 | C11: 4.28 | D11: 2.7 | E11: 2.1
A12: 0.1 | B12: 0.6651 | C12: 4.13 | D12: 2.6 | E12: 2.05
A13: 0.2 | B13: 0.6662 | C13: 3.2 | D13: 2.05 | E13: 1.57
A14: 0.3 | B14: 0.6664 | C14: 2.8 | D14: 1.75 | E14: 1.3
A15: 0.4 | B15: 0.6665 | C15: 2.5 | D15: 1.55 | E15: 1.16
A16: 0.5 | B16: 0.6666 | C16: 2.3 | D16: 1.4 | E16: 1.08
A20: 0.001 | B20: d15 | C20: =FindCoef_a(A20,A21) ->  | D20: coef_a
A21: 3.5 | B21: L | C21: =FindCoef_b(A20) ->  | D21: coef_b
